fUSD/lending_fUSD_20250117
["ID","MTS","AMOUNT","RATE_DAILY","PERIOD"]
[349386970,1737147032212,-250.0,0.0002148,2]
[349386971,1737147032222,-1000.0,0.00021508,2]
[349386972,1737147032231,-300.0,0.00021511,2]
[349386973,1737147032242,-6388.30786738,0.00021512,2]
[349386974,1737147032312,-361.67562588,0.00021512,2]
[349386975,1737147032323,-383.46181013,0.00021512,2]
[349386976,1737147032341,-5535.76,0.00021512,2]
[349386977,1737147032363,-818.92420752,0.00021512,2]
[349386978,1737147032375,-1403.74231279,0.00021512,2]
[349386979,1737147032386,-1494.21,0.00021512,2]
[349386980,1737147032398,-1371.18407955,0.00021512,2]
[349386981,1737147032410,-1462.98622447,0.00021512,2]
[349386982,1737147032432,-497.54787228,0.00021512,2]
[349386983,1737147032442,-152.03,0.00021533,2]
[349386984,1737147032451,-150.0,0.00021562,2]
[349386985,1737147032461,-220.72,0.00021583,2]
[349386986,1737147032475,-1100.03,0.00021583,2]
[349386987,1737147032485,-407.3,0.00021599,2]
[349386988,1737147032495,-989.59,0.00021622,2]
[349386989,1737147032505,-250.0,0.00021666,2]
[349386990,1737147032515,-216.26,0.00021822,2]
[349386991,1737147032524,-400.0,0.000219,7]
[349386992,1737147032534,-150.0,0.00021916,2]
[349386993,1737147032543,-500.0,0.00021917,2]
[349386994,1737147032553,-500.0,0.00021917,2]
[349386995,1737147032564,-500.0,0.00021917,7]
[349386996,1737147032573,-505.3191079,0.00021917,2]
[349386997,1737147032583,-886.68,0.00021917,2]
[349386998,1737147032592,-420.03952231,0.00021917,2]
[349386999,1737147032601,-315.94104204,0.00021917,2]
[349387000,1737147032611,-500.0,0.00021917,2]
[349387001,1737147032620,-500.0,0.00021917,2]
[349387002,1737147032630,-500.0,0.00021917,2]
[349387003,1737147032640,-500.0,0.00021917,2]
[349387004,1737147032651,-504.97804674,0.00021917,2]
[349387005,1737147032662,-483.11111617,0.00021917,2]
[349387006,1737147032672,-150.0,0.00021918,2]
[349387007,1737147032681,-3346.79,0.0002195,2]
[349387008,1737147032691,-500.0,0.00022,3]
[349387009,1737147032701,-161.81823229,0.00022,2]
[349387010,1737147032711,-900.0,0.00022,8]
[349387011,1737147032721,-723.67,0.00022023,2]
[349387012,1737147032730,-319.9513174,0.00022054,2]
[349387013,1737147032741,-1400.0,0.000221,8]
[349387014,1737147032750,-207.34,0.00022192,2]
[349387015,1737147032760,-150.0,0.00022192,2]
[349387016,1737147032770,-150.11,0.00022192,2]
[349387017,1737147032779,-174.45,0.00022192,2]
[349387018,1737147032789,-150.0,0.00022192,2]
[349387019,1737147032798,-150.0,0.00022192,2]
[349387020,1737147032807,-150.0,0.00022192,2]
[349387021,1737147032817,-150.0,0.00022192,2]
[349387022,1737147032828,-150.0,0.00022192,2]
[349387023,1737147032838,-150.0,0.00022192,2]
[349387024,1737147032847,-150.0,0.00022192,2]
[349387025,1737147032857,-150.0,0.00022192,2]
[349387026,1737147032867,-1900.0,0.000222,8]
[349387027,1737147032876,-1563.0,0.00022286,2]
[349387028,1737147032885,-2400.0,0.000223,8]
[349387029,1737147032895,-400.0,0.000224,8]
[349387030,1737147032906,-150.0,0.00022495,2]
[349387031,1737147032915,-400.0,0.000225,8]
[349387032,1737147032924,-400.0,0.000226,8]
[349387033,1737147032934,-319.9513174,0.000227,2]
[349387034,1737147032944,-400.0,0.000227,8]
[349387035,1737147032954,-3374.5561829,0.00022736,2]
[349387036,1737147032963,-860.92660958,0.000228,2]
[349387037,1737147032973,-2373.034,0.000228,2]
[349387038,1737147032982,-170.2,0.000228,2]
[349387039,1737147032992,-1200.0,0.000228,8]
[349387040,1737147033001,-5704.682,0.00022899,2]
[349387041,1737147033011,-3000.0,0.0002297,2]
[349387042,1737147033020,-886.68,0.00022998,2]
[349387043,1737147033030,-520.92,0.00022998,2]
[349387044,1737147033039,-500.0,0.00022998,2]
[349387045,1737147033049,-482.62995344,0.00023,5]
[349387046,1737147033059,-851.85115192,0.00023,2]
[349387047,1737147033068,-268.0,0.00023,2]
[349387048,1737147033078,-150.0,0.00023014,2]
[349387049,1737147033087,-150.0,0.00023014,2]
[349387050,1737147033097,-150.0,0.00023014,2]
[349387051,1737147033106,-150.0,0.00023014,2]
[349387052,1737147033116,-83.71294605,0.00023014,2]
[349387053,1737147033128,-66.28705395,0.00023014,2]
[349387054,1737147033137,-300.0,0.00023014,2]
[349387055,1737147033147,-300.0,0.00023014,2]
[349387056,1737147033159,-150.0,0.00023014,2]
[349387057,1737147033168,-150.0,0.00023014,2]
[349387058,1737147033178,-150.0,0.00023014,2]
[349387059,1737147033187,-150.0,0.00023014,2]
[349387060,1737147033196,-150.0,0.00023014,2]
[349387061,1737147033206,-150.0,0.00023014,2]
[349387062,1737147033216,-1427.58729229,0.00023016,2]
[349387063,1737147033225,-200.0,0.0002302,2]
[349387064,1737147033235,-4143.09473317,0.00023026,2]
[349387065,1737147033247,-2104.63347979,0.00023026,2]
[349387066,1737147033256,-462.74162003,0.00023031,2]
[349387067,1737147033266,-1427.58729229,0.00023057,2]
[349387068,1737147033276,-200.0,0.00023059,2]
[349387069,1737147033285,-1427.58729229,0.00023061,2]
[349387070,1737147033295,-6247.72821296,0.00023064,2]
[349387071,1737147033304,-150.0,0.00023071,2]
[349387072,1737147033313,-200.0,0.00023075,2]
[349387073,1737147033322,-126.98281665,0.00023082,2]
[349387074,1737147033334,-335.75880338,0.00023082,2]
[349387075,1737147033343,-734.74719422,0.00023083,2]
[349387076,1737147033355,-5512.98101874,0.00023083,2]
[349387077,1737147033364,-462.74162003,0.00023092,2]
[349387078,1737147033373,-200.0,0.00023093,2]
[349387079,1737147033382,-1427.58729229,0.00023095,2]
[349387080,1737147033392,-886.68,0.00023099,2]
[349387081,1737147033401,-500.0,0.00023099,2]
[349387082,1737147033411,-161.17281424,0.00023099,2]
[349387083,1737147033420,-161.17281423,0.000231,2]
[349387084,1737147033429,-2496.79188648,0.000231,2]
[349387085,1737147033438,-5219.6469297,0.000231,2]
[349387086,1737147033450,-435.32836432,0.000231,2]
[349387087,1737147033462,-2330.89097184,0.000231,2]
[349387088,1737147033551,-9682.26,0.000231,2]
[349387089,1737147033562,-1170.920517,0.000231,2]
[349387090,1737147033573,-2055.25000005,0.000231,2]
[349387106,1737147038062,-1354.11041212,0.0002138,2]
[349387108,1737147038072,-6114.97776408,0.000231,2]
[349387110,1737147038081,-185.73316756,0.000231,2]
[349387111,1737147038091,-161.17281423,0.000231,2]
[349387112,1737147038100,-1095.17279824,0.000231,2]
[349387113,1737147038109,-1427.58729229,0.00023104,2]
[349387114,1737147038120,-200.0,0.00023107,2]
[349387115,1737147038130,-1427.58729229,0.00023109,2]
[349387116,1737147038139,-462.74162003,0.00023114,2]
[349387117,1737147038151,-462.74162003,0.00023121,2]
[349387118,1737147038162,-2887.48633088,0.00023122,2]
[349387119,1737147038178,-3360.24188208,0.00023122,2]
[349387120,1737147038188,-1427.58729229,0.00023131,2]
[349387121,1737147038197,-6247.72821296,0.00023138,2]
[349387122,1737147038208,-462.74162003,0.00023141,2]
[349387123,1737147038218,-462.74162003,0.00023149,2]
[349387124,1737147038227,-1427.58729229,0.00023157,2]
[349387125,1737147038236,-6247.72821296,0.00023164,2]
[349387126,1737147038245,-200.0,0.00023171,2]
[349387127,1737147038255,-151.55777259,0.00023173,2]
[349387128,1737147038264,-500.0,0.00023173,2]
[349387129,1737147038274,-151.94243835,0.00023173,2]
[349387130,1737147038283,-517.02843725,0.00023173,2]
[349387131,1737147038294,-151.90901711,0.00023173,2]
[349387132,1737147038303,-164.4993626,0.00023173,2]
[349387133,1737147038312,-151.93608982,0.00023173,2]
[349387134,1737147038321,-462.74162003,0.00023175,2]
[349387135,1737147038330,-200.0,0.00023184,2]
[349387136,1737147038339,-6247.72821296,0.00023184,2]
[349387137,1737147038349,-200.0,0.00023187,2]
[349387138,1737147038358,-207.19,0.0002319,2]
[349387139,1737147038368,-200.0,0.00023195,2]
[349387140,1737147038377,-1507.31011905,0.00023195,2]
[349387141,1737147038389,-267.09,0.00023195,2]
[349387142,1737147038411,-147.4551466,0.00023195,2]
[349387144,1737147038431,-4325.87294731,0.00023195,2]
[349387146,1737147038441,-886.68,0.00023198,2]
[349387148,1737147038450,-500.0,0.00023198,2]
[349387149,1737147038459,-500.0,0.00023198,2]
[349387150,1737147038468,-164.81,0.00023198,2]
[349387151,1737147038479,-500.0,0.00023198,2]
[349387152,1737147038490,-500.0,0.00023198,2]
[349387153,1737147038499,-500.0,0.00023198,2]
[349387154,1737147038508,-500.0,0.00023198,2]
[349387155,1737147038518,-572.96,0.00023198,2]
[349387156,1737147038527,-500.0,0.00023198,2]
[349387158,1737147038537,-216.76492291,0.00023199,2]
[349387160,1737147038546,-1066.78213751,0.00023199,10]
[349387162,1737147038556,-1066.78213751,0.00023199,10]
[349387164,1737147038565,-1066.78213751,0.00023199,10]
[349387166,1737147038574,-1066.78213751,0.00023199,10]
[349387168,1737147038583,-1066.78213751,0.00023199,10]
[349387170,1737147038592,-1066.78213751,0.00023199,10]
[349387172,1737147038602,-500.0,0.00023199,2]
[349387174,1737147038611,-886.68,0.00023199,2]
[349387176,1737147038620,-886.68,0.00023199,2]
[349387178,1737147038630,-886.68,0.00023199,2]
[349387180,1737147038639,-886.68,0.00023199,2]
[349387182,1737147038649,-886.68,0.00023199,2]
[349387184,1737147038659,-886.68,0.00023199,2]
[349387185,1737147038671,-886.68,0.00023199,2]
[349387186,1737147038680,-886.68,0.00023199,2]
[349387187,1737147038690,-886.68,0.00023199,2]
[349387188,1737147038699,-886.68,0.00023199,2]
[349387189,1737147038709,-886.68,0.00023199,2]
[349387190,1737147038719,-886.68,0.00023199,2]
[349387191,1737147038728,-886.68,0.00023199,2]
[349387192,1737147038738,-886.68,0.00023199,2]
[349387193,1737147038747,-886.68,0.00023199,2]
[349387194,1737147038757,-886.68,0.00023199,2]
[349387195,1737147038767,-886.68,0.00023199,2]
[349387196,1737147038776,-886.68,0.00023199,2]
[349387197,1737147038786,-886.68,0.00023199,2]
[349387198,1737147038795,-886.68,0.00023199,2]
[349387199,1737147038804,-508.06,0.00023199,2]
[349387200,1737147038814,-500.0,0.00023199,2]
[349387201,1737147038823,-500.0,0.00023199,2]
[349387202,1737147038833,-500.0,0.00023199,2]
[349387203,1737147038842,-500.0,0.00023199,2]
[349387204,1737147038851,-500.0,0.00023199,2]
[349387205,1737147038860,-500.0,0.00023199,2]
[349387206,1737147038870,-500.0,0.00023199,2]
[349387207,1737147038879,-500.0,0.00023199,2]
[349387208,1737147038888,-500.0,0.00023199,2]
[349387209,1737147038897,-500.0,0.00023199,2]
[349387210,1737147038907,-500.0,0.00023199,2]
[349387211,1737147038916,-500.0,0.00023199,2]
[349387212,1737147038926,-500.0,0.00023199,2]
[349387213,1737147038935,-500.0,0.00023199,2]
[349387214,1737147038944,-249.68,0.00023199,2]
[349387215,1737147038954,-500.0,0.00023199,2]
[349387216,1737147038963,-500.0,0.00023199,2]
[349387217,1737147038973,-500.0,0.00023199,2]
[349387218,1737147038982,-500.0,0.00023199,2]
[349387219,1737147038991,-500.0,0.00023199,2]
[349387220,1737147039000,-500.0,0.00023199,2]
[349387221,1737147039009,-500.0,0.00023199,2]
[349387222,1737147039019,-500.0,0.00023199,2]
[349387223,1737147039028,-500.0,0.00023199,2]
[349387224,1737147039037,-500.0,0.00023199,2]
[349387225,1737147039046,-500.0,0.00023199,2]
[349387226,1737147039055,-500.0,0.00023199,2]
[349387227,1737147039064,-500.0,0.00023199,2]
[349387228,1737147039074,-500.0,0.00023199,2]
[349387229,1737147039083,-500.0,0.00023199,2]
[349387230,1737147039094,-500.0,0.00023199,2]
[349387231,1737147039103,-500.0,0.00023199,2]
[349387232,1737147039112,-500.0,0.00023199,2]
[349387233,1737147039121,-500.0,0.00023199,2]
[349387234,1737147039130,-500.0,0.00023199,2]
[349387235,1737147039139,-173.5631082,0.00023199,2]
[349387236,1737147039148,-500.0,0.00023199,2]
[349387237,1737147039158,-378.20265455,0.00023199,2]
[349387238,1737147039167,-500.0,0.00023199,2]
[349387239,1737147039176,-500.0,0.00023199,2]
[349387240,1737147039186,-500.0,0.00023199,2]
[349387241,1737147039195,-500.0,0.00023199,2]
[349387242,1737147039204,-500.0,0.00023199,2]
[349387243,1737147039214,-500.0,0.00023199,2]
[349387244,1737147039223,-500.0,0.00023199,2]
[349387245,1737147039233,-500.0,0.00023199,2]
[349387246,1737147039242,-500.0,0.00023199,2]
[349387247,1737147039251,-500.0,0.00023199,2]
[349387248,1737147039259,-500.0,0.00023199,2]
[349387249,1737147039268,-500.0,0.00023199,2]
[349387250,1737147039277,-500.0,0.00023199,2]
[349387251,1737147039286,-500.0,0.00023199,2]
[349387252,1737147039295,-500.0,0.00023199,2]
[349387253,1737147039304,-500.0,0.00023199,2]
[349387254,1737147039313,-500.0,0.00023199,2]
[349387255,1737147039323,-583.4,0.00023199,2]
[349387256,1737147039331,-583.4,0.00023199,2]
[349387257,1737147039342,-583.4,0.00023199,2]
[349387258,1737147039351,-583.4,0.00023199,2]
[349387259,1737147039360,-583.4,0.00023199,2]
[349387260,1737147039369,-583.4,0.00023199,2]
[349387261,1737147039378,-583.4,0.00023199,2]
[349387262,1737147039387,-583.4,0.00023199,2]
[349387263,1737147039400,-583.4,0.00023199,2]
[349387264,1737147039410,-583.4,0.00023199,2]
[349387265,1737147039422,-583.4,0.00023199,2]
[349387266,1737147039432,-583.4,0.00023199,2]
[349387267,1737147039441,-583.4,0.00023199,2]
[349387268,1737147039450,-583.4,0.00023199,2]
[349387269,1737147039461,-583.4,0.00023199,2]
[349387270,1737147039474,-583.4,0.00023199,2]
[349387271,1737147039484,-583.4,0.00023199,2]
[349387272,1737147039494,-583.4,0.00023199,2]
[349387273,1737147039504,-583.4,0.00023199,2]
[349387274,1737147039516,-583.4,0.00023199,2]
[349387275,1737147039526,-583.4,0.00023199,2]
[349387276,1737147039537,-583.4,0.00023199,2]
[349387277,1737147039547,-583.4,0.00023199,2]
[349387278,1737147039557,-583.46,0.00023199,2]
[349387279,1737147039568,-500.0,0.00023199,2]
[349387280,1737147039579,-500.0,0.00023199,2]
[349387281,1737147039589,-500.0,0.00023199,2]
[349387282,1737147039600,-571.38869967,0.00023199,2]
[349387283,1737147039610,-353.69699238,0.00023199,2]
[349387284,1737147039789,-500.0,0.00023199,2]
[349387285,1737147039799,-500.0,0.00023199,2]
[349387286,1737147039808,-500.0,0.00023199,2]
[349387287,1737147039818,-415.5,0.00023199,2]
[349387288,1737147039827,-500.0,0.00023199,2]
[349387289,1737147039836,-500.0,0.00023199,2]
[349387290,1737147039845,-500.0,0.00023199,2]
[349387291,1737147039854,-500.0,0.00023199,2]
[349387292,1737147039864,-500.0,0.00023199,2]
[349387293,1737147039873,-500.0,0.00023199,2]
[349387294,1737147039882,-500.0,0.00023199,2]
[349387295,1737147039891,-500.0,0.00023199,2]
[349387296,1737147039900,-500.0,0.00023199,2]
[349387297,1737147039910,-404.93502502,0.00023199,2]
[349387298,1737147039921,-622.19,0.00023199,2]
[349387299,1737147039931,-500.0,0.00023199,2]
[349387300,1737147039940,-500.0,0.00023199,2]
[349387301,1737147039949,-500.0,0.00023199,2]
[349387302,1737147039958,-500.0,0.00023199,2]
[349387303,1737147039967,-500.0,0.00023199,2]
[349387304,1737147039977,-500.0,0.00023199,2]
[349387305,1737147039986,-500.0,0.00023199,2]
[349387306,1737147039995,-500.0,0.00023199,2]
[349387307,1737147040004,-500.0,0.00023199,2]
[349387308,1737147040013,-500.0,0.00023199,2]
[349387309,1737147040022,-500.0,0.00023199,2]
[349387310,1737147040033,-500.0,0.00023199,2]
[349387311,1737147040042,-500.0,0.00023199,2]
[349387313,1737147040051,-500.0,0.00023199,2]
[349387315,1737147040061,-500.0,0.00023199,2]
[349387318,1737147040070,-500.0,0.00023199,2]
[349387321,1737147040080,-500.0,0.00023199,2]
[349387324,1737147040089,-500.0,0.00023199,2]
[349387326,1737147040098,-500.0,0.00023199,2]
[349387328,1737147040107,-500.0,0.00023199,2]
[349387330,1737147040116,-441.85,0.00023199,2]
[349387332,1737147040125,-500.0,0.00023199,2]
[349387334,1737147040134,-500.0,0.00023199,2]
[349387336,1737147040143,-500.0,0.00023199,2]
[349387338,1737147040152,-493.68,0.00023199,2]
[349387340,1737147040162,-500.0,0.00023199,2]
[349387342,1737147040172,-500.0,0.00023199,2]
[349387344,1737147040181,-500.0,0.00023199,2]
[349387346,1737147040190,-500.0,0.00023199,2]
[349387348,1737147040199,-500.0,0.00023199,2]
[349387350,1737147040208,-500.0,0.00023199,2]
[349387352,1737147040217,-500.0,0.00023199,2]
[349387353,1737147040226,-500.0,0.00023199,2]
[349387354,1737147040236,-500.0,0.00023199,2]
[349387355,1737147040245,-500.0,0.00023199,2]
[349387356,1737147040254,-500.0,0.00023199,2]
[349387357,1737147040263,-500.0,0.00023199,2]
[349387358,1737147040272,-500.0,0.00023199,2]
[349387359,1737147040281,-500.0,0.00023199,2]
[349387360,1737147040291,-500.0,0.00023199,2]
[349387361,1737147040301,-500.0,0.00023199,2]
[349387362,1737147040310,-500.0,0.00023199,2]
[349387363,1737147040319,-500.0,0.00023199,2]
[349387364,1737147040328,-300.88,0.00023199,2]
[349387365,1737147040337,-500.0,0.00023199,2]
[349387366,1737147040346,-412.93478777,0.00023199,2]
[349387367,1737147040355,-500.0,0.00023199,2]
[349387368,1737147040364,-500.0,0.00023199,2]
[349387369,1737147040374,-500.0,0.00023199,2]
[349387370,1737147040385,-500.0,0.00023199,2]
[349387371,1737147040396,-500.0,0.00023199,2]
[349387372,1737147040405,-500.0,0.00023199,2]
[349387373,1737147040414,-500.0,0.00023199,2]
[349387374,1737147040426,-500.0,0.00023199,2]
[349387375,1737147040435,-171.08,0.00023199,2]
[349387376,1737147040445,-500.0,0.00023199,2]
[349387377,1737147040454,-500.0,0.00023199,2]
[349387378,1737147040463,-500.0,0.00023199,2]
[349387379,1737147040475,-500.0,0.00023199,2]
[349387380,1737147040487,-500.0,0.00023199,2]
[349387381,1737147040496,-500.0,0.00023199,2]
[349387382,1737147040505,-500.0,0.00023199,2]
[349387383,1737147040514,-500.0,0.00023199,2]
[349387384,1737147040525,-500.0,0.00023199,2]
[349387385,1737147040535,-500.0,0.00023199,2]
[349387386,1737147040545,-500.0,0.00023199,2]
[349387387,1737147040554,-500.0,0.00023199,2]
[349387388,1737147040564,-295.14318867,0.00023199,2]
[349387389,1737147040574,-500.0,0.00023199,2]
[349387390,1737147040583,-500.0,0.00023199,2]
[349387391,1737147040592,-500.0,0.00023199,2]
[349387392,1737147040602,-500.0,0.00023199,2]
[349387393,1737147040611,-500.0,0.00023199,2]
[349387394,1737147040620,-500.0,0.00023199,2]
[349387395,1737147040629,-500.0,0.00023199,2]
[349387396,1737147040639,-500.0,0.00023199,2]
[349387397,1737147040649,-500.0,0.00023199,2]
[349387398,1737147040658,-500.0,0.00023199,2]
[349387399,1737147040668,-500.0,0.00023199,2]
[349387400,1737147040677,-500.0,0.00023199,2]
[349387401,1737147040687,-500.0,0.00023199,2]
[349387402,1737147040696,-500.0,0.00023199,2]
[349387403,1737147040705,-500.0,0.00023199,2]
[349387404,1737147040715,-500.0,0.00023199,2]
[349387405,1737147040724,-594.6232016,0.00023199,2]
[349387406,1737147040733,-572.96,0.00023199,2]
[349387407,1737147040743,-572.96,0.00023199,2]
[349387408,1737147040751,-572.96,0.00023199,2]
[349387409,1737147040761,-572.96,0.00023199,2]
[349387410,1737147040770,-572.96,0.00023199,2]
[349387411,1737147040780,-572.96,0.00023199,2]
[349387412,1737147040789,-572.96,0.00023199,2]
[349387413,1737147040798,-572.96,0.00023199,2]
[349387414,1737147040808,-572.96,0.00023199,2]
[349387415,1737147040818,-572.96,0.00023199,2]
[349387416,1737147040827,-572.96,0.00023199,2]
[349387417,1737147040836,-572.96,0.00023199,2]
[349387418,1737147040845,-572.96,0.00023199,2]
[349387419,1737147040854,-572.96,0.00023199,2]
[349387420,1737147040864,-572.96,0.00023199,2]
[349387421,1737147040873,-572.96,0.00023199,2]
[349387422,1737147040882,-572.96,0.00023199,2]
[349387423,1737147040891,-572.96,0.00023199,2]
[349387424,1737147040900,-572.96,0.00023199,2]
[349387425,1737147040910,-572.96,0.00023199,2]
[349387426,1737147040920,-572.96,0.00023199,2]
[349387427,1737147040930,-572.96,0.00023199,2]
[349387428,1737147040939,-572.96519081,0.00023199,2]
[349387429,1737147040949,-500.0,0.00023199,2]
[349387430,1737147040958,-500.0,0.00023199,2]
[349387431,1737147040968,-500.0,0.00023199,2]
[349387432,1737147040976,-451.1535798,0.00023199,2]
[349387433,1737147040985,-500.0,0.00023199,2]
[349387434,1737147040995,-500.0,0.00023199,2]
[349387435,1737147041004,-500.0,0.00023199,2]
[349387436,1737147041012,-500.0,0.00023199,2]
[349387437,1737147041022,-500.0,0.00023199,2]
[349387438,1737147041031,-500.0,0.00023199,2]
[349387439,1737147041040,-500.0,0.00023199,2]
[349387440,1737147041049,-500.0,0.00023199,2]
[349387441,1737147041058,-500.0,0.00023199,2]
[349387442,1737147041067,-500.0,0.00023199,2]
[349387443,1737147041076,-500.0,0.00023199,2]
[349387444,1737147041085,-500.0,0.00023199,2]
[349387445,1737147041094,-500.0,0.00023199,2]
[349387446,1737147041103,-500.0,0.00023199,2]
[349387447,1737147041112,-500.0,0.00023199,2]
[349387448,1737147041121,-500.0,0.00023199,2]
[349387449,1737147041130,-500.0,0.00023199,2]
[349387450,1737147041139,-500.0,0.00023199,2]
[349387451,1737147041149,-500.0,0.00023199,2]
[349387452,1737147041160,-500.0,0.00023199,2]
[349387453,1737147041172,-500.0,0.00023199,2]
[349387454,1737147041182,-500.0,0.00023199,2]
[349387455,1737147041191,-300.0,0.00023199,2]
[349387456,1737147041200,-12920.79708634,0.000232,2]
[349387457,1737147041335,-1224.79,0.000232,2]
[349387458,1737147041346,-1158.3,0.000232,2]
[349387459,1737147041357,-1738.78111752,0.000232,2]
[349387460,1737147041366,-5274.52308248,0.000232,2]
[349387461,1737147041385,-500.0,0.00023199,2]
[349387462,1737147041394,-500.0,0.00023199,2]
[349387463,1737147041403,-1058.588,0.000232,2]
[349387464,1737147041413,-826876.28484103,0.000232,2]
[349387465,1737147041432,-5002.59247009,0.000232,2]
[349387466,1737147041543,-500.0,0.00023199,2]
[349387467,1737147041552,-500.0,0.00023199,2]
[349387468,1737147041564,-500.0,0.00023199,2]
[349387469,1737147041574,-581.31,0.00023199,2]
[349387470,1737147041584,-500.0,0.00023199,2]
[349387471,1737147041594,-500.0,0.00023199,2]
[349387472,1737147041603,-500.0,0.00023199,2]
[349387473,1737147041613,-500.0,0.00023199,2]
[349387474,1737147041622,-841.09889139,0.000232,2]
[349387475,1737147041658,-504.12222761,0.00023199,2]
[349387476,1737147041668,-22352.40855603,0.000232,2]
[349387483,1737147044009,-1544.92,0.0002263,2]
[349387484,1737147044019,-769.41462,0.000232,2]
[349387485,1737147044031,-2579.414911,0.000232,2]
[349387487,1737147044042,-10976.6367496,0.000232,2]
[349387490,1737147044069,-11896.35546771,0.000232,2]
[349387492,1737147044079,-2853.60850361,0.000232,2]
[349387494,1737147044090,-8159.128925,0.000232,2]
[349387499,1737147044128,-31509.0,0.000232,2]
[349387507,1737147044189,-5239.45434952,0.000232,2]
[349387509,1737147044200,-391.32397589,0.000232,2]
[349387515,1737147044247,-913.5188708,0.000232,2]
[349387517,1737147044258,-417.72799872,0.000232,2]
[349387519,1737147044268,-353192.43104985,0.000232,2]
[349387521,1737147044277,-278.394,0.000232,2]
[349387523,1737147044286,-187.046,0.000232,2]
[349387525,1737147044296,-184.091,0.000232,2]
[349387527,1737147044305,-205.167,0.000232,2]
[349387529,1737147044314,-199.819,0.000232,2]
[349387531,1737147044323,-150.0,0.000232,3]
[349387533,1737147044332,-150.0,0.000232,4]
[349387535,1737147044341,-150.0,0.000232,4]
[349387537,1737147044350,-150.0,0.000232,3]
[349387539,1737147044359,-180298.8412614,0.000232,2]
[349387718,1737147046130,-310.97922101,0.000232,2]
[349387733,1737147046377,-70427.04903412,0.000232,2]
[349387734,1737147046388,-54144.34321076,0.000232,2]
[349387735,1737147046399,-9678.72322694,0.000232,2]
[349387736,1737147046409,-880.13175001,0.000232,2]
[349387737,1737147046422,-137578.27040025,0.000232,2]
[349387738,1737147046433,-929.21304,0.000232,2]
[349387739,1737147046444,-958.98657629,0.000232,2]
[349387740,1737147046455,-5121.47410828,0.000232,2]
[349387741,1737147046472,-828.90084879,0.000232,2]
[349387742,1737147046485,-360.975,0.000232,2]
[349387743,1737147046496,-403.94,0.000232,2]
[349387744,1737147046508,-1219.3356597,0.000232,2]
[349387779,1737147519120,150.0,0.000102,4]
[349387780,1737147641847,150.0,0.00010112,2]
[349387781,1737147690109,220.05108204,0.0001,2]
[349387784,1737148015209,-200.07,0.00010137,2]
[349387785,1737148015233,-200.07,0.00016813,2]
[349387786,1737148015255,-108.67379232,0.00020358,2]
[349387787,1737148028093,-590.88620768,0.00020358,2]
[349387788,1737148028115,-257.17040327,0.00021791,2]
[349387789,1737148028136,-260.549,0.00021891,2]
[349387790,1737148028157,-563.10371979,0.00021891,2]
[349387791,1737148033096,-6.18628021,0.00021891,2]
[349387792,1737148033117,-212.66,0.00021891,2]
[349387793,1737148033138,-635.0,0.00021891,2]